[Event "Sunway Sitges Chess Festival"]
[Date "2024.12.21"]
[White "Srijak Sengupta"]
[Black "Arkell, Keith C"]
[WhiteElo "2112"]
[BlackElo "2355"]
[Round "6.32"]
[Result "0-1"]
[TimeControl "40/5400+30:1800+30"]

1. Nf3 {[%clk 1:26:10]} 1... d6 {[%clk 1:30:37]} 2. g3 {[%clk 1:26:10]} 2... e5
{[%clk 1:30:37]} 3. d3 {[%clk 1:26:24]} 3... g6 {[%clk 1:28:51]} 4. Bg2 {[%clk
1:26:23]} 4... Bg7 {[%clk 1:29:15]} 5. O-O {[%clk 1:26:35]} 5... Ne7 {[%clk
1:29:19]} 6. c4 {[%clk 1:26:34]} 6... O-O {[%clk 1:29:43]} 7. Nc3 {[%clk
1:21:35]} 7... c5 {[%clk 1:29:55]} 8. Ne1 {[%clk 1:19:46]} 8... Nbc6 {[%clk
1:30:05]} 9. Nc2 {[%clk 1:17:57]} 9... Rb8 {[%clk 1:28:14]} 10. Ne3 {[%clk
1:10:11]} 10... Nd4 {[%clk 1:24:21]} 11. Ned5 {[%clk 1:10:02]} 11... Nxd5 {[%clk
1:24:29]} 12. Nxd5 {[%clk 1:08:27]} 12... b5 {[%clk 1:24:33]} 13. e3 {[%clk
0:57:59]} 13... Nf5 {[%clk 1:24:17]} 14. b3 {[%clk 0:52:46]} 14... Ne7 {[%clk
1:09:52]} 15. Nxe7+ {[%clk 0:51:57]} 15... Qxe7 {[%clk 1:10:20]} 16. Bb2 {[%clk
0:52:10]} 16... a5 {[%clk 1:08:31]} 17. cxb5 {[%clk 0:47:26]} 17... Rxb5 {[%clk
1:08:52]} 18. Bc3 {[%clk 0:46:06]} 18... Be6 {[%clk 1:06:56]} 19. d4 {[%clk
0:42:21]} 19... cxd4 {[%clk 1:02:00]} 20. exd4 {[%clk 0:42:45]} 20... Qa7 {[%clk
0:56:11]} 21. Bc6 {[%clk 0:29:23]} 21... Rb6 {[%clk 0:50:47]} 22. d5 {[%clk
0:29:31]} 22... Bh3 {[%clk 0:45:09]} 23. Re1 {[%clk 0:29:54]} 23... Rxc6 {[%clk
0:44:10]} 24. dxc6 {[%clk 0:30:17]} 24... Qc5 {[%clk 0:44:35]} 25. Rc1 {[%clk
0:12:48]} 25... Qxc6 {[%clk 0:43:23]} 26. f3 {[%clk 0:13:13]} 26... Qb6+ {[%clk
0:38:49]} 27. Kh1 {[%clk 0:13:36]} 27... Qf2 {[%clk 0:20:39]} 28. Rg1 {[%clk
0:13:59]} 28... Rc8 {[%clk 0:13:49]} 29. Be1 {[%clk 0:11:05]} 29... Qb6 {[%clk
0:14:07]} 30. Rxc8+ {[%clk 0:11:20]} 30... Bxc8 {[%clk 0:14:35]} 31. Rg2 {[%clk
0:06:50]} 31... Bb7 {[%clk 0:14:56]} 32. Qd3 {[%clk 0:04:49]} 32... d5 {[%clk
0:09:43]} 33. Rd2 {[%clk 0:04:15]} 33... d4 {[%clk 0:09:59]} 34. Rc2 {[%clk
0:04:20]} 34... Qe6 {[%clk 0:06:56]} 35. Bxa5 {[%clk 0:02:28]} 35... h5 {[%clk
0:04:47]} 36. Rc7 {[%clk 0:02:31]} 36... Bd5 {[%clk 0:03:56]} 37. Qb5 {[%clk
0:01:54]} 37... Bxf3+ {[%clk 0:04:06]} 38. Kg1 {[%clk 0:02:24]} 38... Bh6 {[%clk
0:03:55]} 39. Qd7 {[%clk 0:02:39]} 39... Be3+ {[%clk 0:03:03]} 40. Kf1 {[%clk
0:33:08]} 40... Qa6+ {[%clk 0:32:12]} 41. Rc4 {[%clk 0:33:32]} 41... Qxa5 {[%clk
0:32:05]} 42. Qe8+ {[%clk 0:33:54]} 42... Kg7 {[%clk 0:32:31]} 43. b4 {[%clk
0:33:56]} 43... Qxa2 {[%clk 0:31:56]} 44. Qxe5+ {[%clk 0:34:19]} 44... Kh7
{[%clk 0:32:24]} 45. Qd6 {[%clk 0:33:57]} 0-1

[Variant "Standard"]
[Site "Europe Echecs"]

[Event "Sunway Sitges Chess Festival"]
[Date "2024.12.21"]
[White "Singh, Siddharth"]
[Black "Lacasa Diaz, Josep Anton"]
[WhiteElo "2107"]
[BlackElo "2324"]
[Round "6.33"]
[Result "1-0"]
[TimeControl "40/5400+30:1800+30"]

1. e4 {[%clk 1:30:58]} 1... c5 {[%clk 1:30:30]} 2. Nf3 {[%clk 1:31:21]} 2... d6
{[%clk 1:30:51]} 3. d4 {[%clk 1:31:46]} 3... cxd4 {[%clk 1:31:16]} 4. Nxd4
{[%clk 1:32:09]} 4... Nf6 {[%clk 1:31:34]} 5. Nc3 {[%clk 1:32:33]} 5... g6
{[%clk 1:31:57]} 6. Be3 {[%clk 1:32:58]} 6... Bg7 {[%clk 1:31:51]} 7. f3 {[%clk
1:33:22]} 7... O-O {[%clk 1:32:11]} 8. Qd2 {[%clk 1:33:48]} 8... Nc6 {[%clk
1:32:32]} 9. O-O-O {[%clk 1:34:12]} 9... d5 {[%clk 1:32:42]} 10. exd5 {[%clk
1:34:36]} 10... Nxd5 {[%clk 1:33:01]} 11. Nxc6 {[%clk 1:35:02]} 11... bxc6
{[%clk 1:33:26]} 12. Bd4 {[%clk 1:35:27]} 12... e5 {[%clk 1:20:57]} 13. Bc5
{[%clk 1:35:50]} 13... Re8 {[%clk 1:21:21]} 14. Ne4 {[%clk 1:36:12]} 14... Qc7
{[%clk 1:16:09]} 15. h4 {[%clk 1:36:29]} 15... f5 {[%clk 1:15:55]} 16. Nd6
{[%clk 1:36:53]} 16... Rd8 {[%clk 1:16:19]} 17. Nxc8 {[%clk 1:37:19]} 17...
Raxc8 {[%clk 1:16:44]} 18. h5 {[%clk 1:37:44]} 18... Nb6 {[%clk 1:15:56]} 19.
Bxb6 {[%clk 1:38:06]} 19... Rxd2 {[%clk 1:06:47]} 20. Bc4+ {[%clk 1:38:30]}
20... Kf8 {[%clk 1:07:04]} 21. Bxc7 {[%clk 1:38:55]} 21... Rxd1+ {[%clk
1:07:25]} 22. Rxd1 {[%clk 1:39:20]} 22... Rxc7 {[%clk 1:07:46]} 23. hxg6 {[%clk
1:39:46]} 23... Bh6+ {[%clk 1:07:27]} 24. Kb1 {[%clk 1:40:11]} 24... hxg6 {[%clk
1:07:48]} 25. Rd6 {[%clk 1:40:36]} 25... Kg7 {[%clk 1:07:35]} 26. b4 {[%clk
1:40:56]} 26... Bf4 {[%clk 0:43:49]} 27. Re6 {[%clk 1:33:23]} 27... Rb7 {[%clk
0:42:50]} 28. a3 {[%clk 1:30:49]} 28... a5 {[%clk 0:41:11]} 29. c3 {[%clk
1:28:44]} 29... a4 {[%clk 0:20:45]} 30. Kc2 {[%clk 1:23:43]} 30... Rd7 {[%clk
0:20:23]} 31. Bd3 {[%clk 1:24:08]} 31... Kf7 {[%clk 0:19:38]} 32. Rxc6 {[%clk
1:21:33]} 32... e4 {[%clk 0:19:13]} 33. fxe4 {[%clk 1:22:01]} 33... fxe4 {[%clk
0:19:35]} 34. Bxe4 {[%clk 1:22:24]} 34... Rd2+ {[%clk 0:19:39]} 35. Kb1 {[%clk
1:22:48]} 35... Rd1+ {[%clk 0:19:25]} 36. Kb2 {[%clk 1:23:01]} 36... Rd2+ {[%clk
0:19:29]} 37. Bc2 {[%clk 1:20:35]} 37... Rxg2 {[%clk 0:19:23]} 38. b5 {[%clk
1:19:56]} 38... g5 {[%clk 0:19:04]} 39. b6 {[%clk 1:15:38]} 39... g4 {[%clk
0:18:40]} 40. b7 {[%clk 1:40:08]} 40... g3 {[%clk 0:48:44]} 41. Rc4 {[%clk
1:39:41]} 41... Bb8 {[%clk 0:25:16]} 42. Rc8 {[%clk 1:39:11]} 42... Rxc2+ {[%clk
0:13:42]} 43. Kxc2 {[%clk 1:39:36]} 43... g2 {[%clk 0:14:07]} 44. Rxb8 {[%clk
1:40:02]} 44... g1=Q {[%clk 0:14:32]} 45. Rf8+ {[%clk 1:40:27]} 45... Kxf8
{[%clk 0:10:34]} 46. b8=Q+ {[%clk 1:40:49]} 46... Ke7 {[%clk 0:10:53]} 47. Qe5+
{[%clk 1:40:16]} 47... Kd7 {[%clk 0:10:36]} 48. Qd4+ {[%clk 1:39:09]} 1-0

[Variant "Standard"]
[Site "Europe Echecs"]

[Event "Sunway Sitges Chess Festival"]
[Date "2024.12.21"]
[White "Jaksland, Tim"]
[Black "Domingo Nunez, Alejandro"]
[WhiteElo "2107"]
[BlackElo "2318"]
[Round "6.34"]
[Result "1-0"]
[TimeControl "40/5400+30:1800+30"]

1. e4 {[%clk 1:30:14]} 1... c5 {[%clk 1:24:20]} 2. c3 {[%clk 1:30:07]} 2... Nf6
{[%clk 1:24:43]} 3. e5 {[%clk 1:30:18]} 3... Nd5 {[%clk 1:25:08]} 4. Bc4 {[%clk
1:30:12]} 4... Nb6 {[%clk 1:25:30]} 5. Bb3 {[%clk 1:30:37]} 5... Nc6 {[%clk
1:25:10]} 6. d4 {[%clk 1:27:04]} 6... cxd4 {[%clk 1:25:34]} 7. cxd4 {[%clk
1:27:12]} 7... d6 {[%clk 1:24:04]} 8. e6 {[%clk 1:21:32]} 8... fxe6 {[%clk
1:24:23]} 9. Nf3 {[%clk 1:20:35]} 9... g6 {[%clk 1:20:10]} 10. h4 {[%clk
1:20:56]} 10... Bg7 {[%clk 1:20:35]} 11. Nc3 {[%clk 1:18:49]} 11... d5 {[%clk
0:57:55]} 12. h5 {[%clk 1:13:40]} 12... Qd6 {[%clk 0:57:30]} 13. hxg6 {[%clk
1:03:22]} 13... e5 {[%clk 0:44:13]} 14. dxe5 {[%clk 0:52:15]} 14... Qxg6 {[%clk
0:38:44]} 15. Nxd5 {[%clk 0:35:47]} 15... Nxd5 {[%clk 0:38:25]} 16. Bxd5 {[%clk
0:32:01]} 16... Bg4 {[%clk 0:29:29]} 17. Qa4 {[%clk 0:23:04]} 17... Rd8 {[%clk
0:11:06]} 18. Be4 {[%clk 0:15:40]} 18... Qe6 {[%clk 0:11:35]} 19. Be3 {[%clk
0:15:32]} 19... Bxf3 {[%clk 0:05:32]} 20. Bxf3 {[%clk 0:15:34]} 20... O-O {[%clk
0:05:43]} 21. Qh4 {[%clk 0:10:55]} 21... h6 {[%clk 0:04:28]} 22. Bxc6 {[%clk
0:06:18]} 22... bxc6 {[%clk 0:01:56]} 23. Bxh6 {[%clk 0:03:15]} 23... Qxe5+
{[%clk 0:00:46]} 24. Be3 {[%clk 0:03:38]} 24... Qa5+ {[%clk 0:00:39]} 25. Kf1
{[%clk 0:03:35]} 25... Qf5 {[%clk 0:00:35]} 26. Qc4+ {[%clk 0:03:32]} 26... Rf7
{[%clk 0:00:32]} 27. Rh4 {[%clk 0:02:56]} 27... Rd5 {[%clk 0:00:39]} 28. Re1
{[%clk 0:02:34]} 28... Bxb2 {[%clk 0:00:33]} 29. Qxc6 {[%clk 0:01:50]} 29... Rd2
{[%clk 0:00:32]} 30. Qa8+ {[%clk 0:01:12]} 30... Rf8 {[%clk 0:00:56]} 31. Qxf8+
{[%clk 0:01:31]} 31... Kxf8 {[%clk 0:01:19]} 32. Bxd2 {[%clk 0:01:24]} 32...
Qd3+ {[%clk 0:01:00]} 33. Re2 {[%clk 0:01:48]} 33... Bf6 {[%clk 0:01:21]} 34.
Rb4 {[%clk 0:01:24]} 34... a5 {[%clk 0:00:58]} 35. Rb3 {[%clk 0:01:40]} 35...
Qh7 {[%clk 0:01:22]} 36. Rh3 {[%clk 0:01:26]} 36... Qb1+ {[%clk 0:01:48]} 37.
Be1 {[%clk 0:01:43]} 37... a4 {[%clk 0:02:11]} 38. Rf3 {[%clk 0:01:47]} 38...
Kg8 {[%clk 0:01:56]} 39. Rg3+ {[%clk 0:01:26]} 39... Kf7 {[%clk 0:02:17]} 40.
Rge3 {[%clk 0:31:11]} 40... Ke8 {[%clk 0:32:10]} 41. g3 {[%clk 0:30:40]} 41...
Kd7 {[%clk 0:32:16]} 42. Kg2 {[%clk 0:30:22]} 42... Qb5 {[%clk 0:26:13]} 43. Re4
{[%clk 0:27:36]} 43... a3 {[%clk 0:20:57]} 44. Bb4 {[%clk 0:23:37]} 44... Qa6
{[%clk 0:21:12]} 45. Bxe7 {[%clk 0:22:22]} 45... Bb2 {[%clk 0:21:39]} 46. Bb4
{[%clk 0:21:47]} 46... Qa8 {[%clk 0:22:02]} 47. f3 {[%clk 0:21:49]} 47... Qg8
{[%clk 0:22:28]} 48. R4e3 {[%clk 0:21:02]} 48... Qc4 {[%clk 0:22:34]} 49. Rd2+
{[%clk 0:19:43]} 49... Kc6 {[%clk 0:22:49]} 50. Bxa3 {[%clk 0:16:11]} 1-0

[Variant "Standard"]
[Site "Europe Echecs"]

[Event "Sunway Sitges Chess Festival"]
[Date "2024.12.21"]
[White "Patrascu, Catalin-Lucian"]
[Black "Rechberger, Franz"]
[WhiteElo "2299"]
[BlackElo "2087"]
[Round "6.35"]
[Result "1/2-1/2"]
[TimeControl "40/5400+30:1800+30"]

1. e4 {[%clk 1:30:59]} 1... e5 {[%clk 1:30:44]} 2. Nf3 {[%clk 1:31:26]} 2... Nc6
{[%clk 1:30:56]} 3. Bb5 {[%clk 1:31:54]} 3... a6 {[%clk 1:30:55]} 4. Ba4 {[%clk
1:32:22]} 4... Nf6 {[%clk 1:31:04]} 5. O-O {[%clk 1:32:49]} 5... Be7 {[%clk
1:31:12]} 6. d3 {[%clk 1:32:54]} 6... b5 {[%clk 1:31:17]} 7. Bb3 {[%clk
1:33:23]} 7... d6 {[%clk 1:31:27]} 8. a3 {[%clk 1:33:52]} 8... Na5 {[%clk
1:27:31]} 9. Ba2 {[%clk 1:33:48]} 9... c5 {[%clk 1:27:46]} 10. Bg5 {[%clk
1:30:34]} 10... Be6 {[%clk 1:17:50]} 11. Nc3 {[%clk 1:22:34]} 11... O-O {[%clk
1:07:41]} 12. b4 {[%clk 1:17:10]} 12... Nc6 {[%clk 1:03:59]} 13. Bxf6 {[%clk
1:11:15]} 13... Bxf6 {[%clk 1:03:50]} 14. Nd5 {[%clk 1:08:14]} 14... g6 {[%clk
0:53:54]} 15. c3 {[%clk 0:59:03]} 15... Bg7 {[%clk 0:47:46]} 16. Qd2 {[%clk
0:52:54]} 16... Ne7 {[%clk 0:34:39]} 17. Ne3 {[%clk 0:51:49]} 17... Qd7 {[%clk
0:32:00]} 18. a4 {[%clk 0:43:03]} 18... cxb4 {[%clk 0:20:37]} 19. cxb4 {[%clk
0:39:57]} 19... Bxa2 {[%clk 0:20:32]} 20. Qxa2 {[%clk 0:36:11]} 20... d5 {[%clk
0:19:19]} 21. Rfc1 {[%clk 0:21:00]} 21... Rac8 {[%clk 0:14:04]} 22. Rc5 {[%clk
0:15:35]} 22... Rxc5 {[%clk 0:12:07]} 23. bxc5 {[%clk 0:16:02]} 23... dxe4
{[%clk 0:11:11]} 24. dxe4 {[%clk 0:16:28]} 24... Qd3 {[%clk 0:11:10]} 25. axb5
{[%clk 0:11:20]} 25... axb5 {[%clk 0:11:22]} 26. Qa7 {[%clk 0:08:06]} 26... Nc6
{[%clk 0:11:07]} 27. Qc7 {[%clk 0:05:12]} 27... Nd4 {[%clk 0:10:11]} 28. Qb7
{[%clk 0:02:42]} 28... Qc3 {[%clk 0:09:37]} 29. Rb1 {[%clk 0:02:10]} 29... Qxc5
{[%clk 0:09:50]} 30. Nxd4 {[%clk 0:01:28]} 30... exd4 {[%clk 0:07:14]} 31. Rxb5
{[%clk 0:01:23]} 31... Qc8 {[%clk 0:07:36]} 32. Nf1 {[%clk 0:00:46]} 32... Qxb7
{[%clk 0:04:48]} 33. Rxb7 {[%clk 0:01:15]} 33... Rc8 {[%clk 0:03:47]} 34. Rd7
{[%clk 0:01:08]} 34... Kf8 {[%clk 0:04:11]} 35. f4 {[%clk 0:00:46]} 35... Ke8
{[%clk 0:04:32]} 36. Rd5 {[%clk 0:01:12]} 36... Ke7 {[%clk 0:04:09]} 37. e5
{[%clk 0:01:17]} 37... f6 {[%clk 0:03:59]} 1/2-1/2

[Variant "Standard"]
[Site "Europe Echecs"]

[Event "Sunway Sitges Chess Festival"]
[Date "2024.12.21"]
[White "Hu, Jiani"]
[Black "Karimov, Alisher"]
[WhiteElo "2101"]
[BlackElo "2296"]
[Round "6.36"]
[Result "0-1"]
[TimeControl "40/5400+30:1800+30"]

1. e4 {[%clk 1:30:58]} 1... c5 {[%clk 1:29:28]} 2. Nf3 {[%clk 1:31:20]} 2... Nc6
{[%clk 1:29:47]} 3. d4 {[%clk 1:31:29]} 3... cxd4 {[%clk 1:30:06]} 4. Nxd4
{[%clk 1:31:56]} 4... Nf6 {[%clk 1:30:29]} 5. Nc3 {[%clk 1:32:02]} 5... d6
{[%clk 1:30:52]} 6. Be2 {[%clk 1:31:19]} 6... e5 {[%clk 1:30:41]} 7. Nb3 {[%clk
1:29:50]} 7... a5 {[%clk 1:30:17]} 8. Be3 {[%clk 1:25:50]} 8... a4 {[%clk
1:22:47]} 9. Nd2 {[%clk 1:24:47]} 9... a3 {[%clk 1:19:22]} 10. Nc4 {[%clk
1:15:02]} 10... axb2 {[%clk 1:18:38]} 11. Rb1 {[%clk 1:15:17]} 11... Be7 {[%clk
1:17:26]} 12. O-O {[%clk 1:12:12]} 12... O-O {[%clk 1:15:54]} 13. a4 {[%clk
0:55:01]} 13... Nb4 {[%clk 1:02:12]} 14. Nb6 {[%clk 0:49:47]} 14... Ra5 {[%clk
1:01:03]} 15. Nc4 {[%clk 0:45:14]} 15... Ra6 {[%clk 0:51:13]} 16. Rxb2 {[%clk
0:46:27]} 16... d5 {[%clk 0:48:28]} 17. Nxe5 {[%clk 0:42:15]} 17... Re6 {[%clk
0:44:15]} 18. f4 {[%clk 0:34:16]} 18... dxe4 {[%clk 0:39:27]} 19. Bc4 {[%clk
0:31:17]} 19... Rd6 {[%clk 0:34:23]} 20. Qe1 {[%clk 0:18:08]} 20... Nbd5 {[%clk
0:26:10]} 21. Nxd5 {[%clk 0:18:51]} 21... Nxd5 {[%clk 0:22:38]} 22. Bc5 {[%clk
0:11:22]} 22... Rh6 {[%clk 0:15:43]} 23. Bxe7 {[%clk 0:16:27]} 23... Qxe7 {[%clk
0:15:01]} 24. Rb5 {[%clk 0:08:26]} 24... Nf6 {[%clk 0:08:50]} 25. Qb4 {[%clk
0:05:55]} 25... Qxb4 {[%clk 0:04:36]} 26. Rxb4 {[%clk 0:05:28]} 26... Ne8 {[%clk
0:02:15]} 27. Rd1 {[%clk 0:09:54]} 27... Rd6 {[%clk 0:02:22]} 28. Rxd6 {[%clk
0:09:24]} 28... Nxd6 {[%clk 0:02:51]} 29. Bd5 {[%clk 0:08:57]} 29... Re8 {[%clk
0:02:41]} 30. Rb6 {[%clk 0:07:40]} 30... Rd8 {[%clk 0:02:50]} 31. Rb4 {[%clk
0:07:25]} 31... Kf8 {[%clk 0:02:28]} 32. Bxe4 {[%clk 0:05:52]} 32... Nxe4 {[%clk
0:01:48]} 33. Rxe4 {[%clk 0:06:16]} 33... Rd1+ {[%clk 0:02:11]} 34. Kf2 {[%clk
0:06:37]} 34... Rd2+ {[%clk 0:02:29]} 35. Re2 {[%clk 0:04:11]} 35... Rd4 {[%clk
0:02:53]} 36. Kf3 {[%clk 0:03:27]} 36... Rxa4 {[%clk 0:03:09]} 37. Nd3 {[%clk
0:01:26]} 37... Rc4 {[%clk 0:03:07]} 38. g3 {[%clk 0:01:39]} 38... h5 {[%clk
0:00:49]} 39. Ke3 {[%clk 0:01:43]} 39... Bg4 {[%clk 0:01:04]} 40. Rd2 {[%clk
0:32:06]} 40... Bf5 {[%clk 0:00:25]} 41. Re2 {[%clk 0:28:03]} 41... f6 {[%clk
0:29:59]} 42. Kd2 {[%clk 0:27:15]} 42... Kf7 {[%clk 0:28:30]} 43. Re1 {[%clk
0:27:17]} 43... Be4 {[%clk 0:27:58]} 44. Rb1 {[%clk 0:25:31]} 44... Kg6 {[%clk
0:26:45]} 45. Ke3 {[%clk 0:19:20]} 45... Bg2 {[%clk 0:26:05]} 46. Rb2 {[%clk
0:16:52]} 46... Bc6 {[%clk 0:25:24]} 47. Nb4 {[%clk 0:15:16]} 47... Bh1 {[%clk
0:22:54]} 48. Kd3 {[%clk 0:15:39]} 48... Rc7 {[%clk 0:22:55]} 49. c4 {[%clk
0:15:22]} 49... Rd7+ {[%clk 0:23:07]} 50. Ke3 {[%clk 0:15:03]} 50... Kf5 {[%clk
0:20:41]} 51. Nd3 {[%clk 0:08:49]} 51... Re7+ {[%clk 0:20:46]} 52. Kd2 {[%clk
0:09:10]} 52... Bc6 {[%clk 0:19:29]} 53. Nb4 {[%clk 0:08:10]} 53... Bf3 {[%clk
0:19:55]} 54. Kd3 {[%clk 0:03:33]} 54... Kg4 {[%clk 0:16:53]} 55. Nd5 {[%clk
0:06:35]} 55... Rd7 {[%clk 0:16:25]} 56. Ke3 {[%clk 0:06:14]} 56... Bh1 {[%clk
0:16:11]} 57. Kf2 {[%clk 0:04:29]} 57... Kh3 {[%clk 0:15:19]} 58. Kg1 {[%clk
0:04:39]} 58... Be4 {[%clk 0:10:21]} 59. Rb5 {[%clk 0:04:33]} 59... Bf3 {[%clk
0:04:52]} 60. Kf2 {[%clk 0:02:18]} 60... Bh1 {[%clk 0:05:12]} 61. Kg1 {[%clk
0:02:39]} 61... Be4 {[%clk 0:05:23]} 62. Ne3 {[%clk 0:02:47]} 62... g6 {[%clk
0:05:33]} 63. Nd5 {[%clk 0:02:57]} 63... Bxd5 {[%clk 0:03:57]} 64. Rxd5 {[%clk
0:02:18]} 64... Rc7 {[%clk 0:03:43]} 65. c5 {[%clk 0:01:50]} 65... Rc6 {[%clk
0:03:48]} 66. Rd6 {[%clk 0:00:-30]} 66... Rxc5 {[%clk 0:02:02]} 67. Rxf6 {[%clk
0:01:06]} 67... Rc6 {[%clk 0:01:46]} 68. Rf7 {[%clk 0:01:30]} 68... Rc1+ {[%clk
0:01:13]} 69. Kf2 {[%clk 0:01:52]} 69... Kxh2 {[%clk 0:01:29]} 70. f5 {[%clk
0:01:48]} 70... Rc2+ {[%clk 0:01:00]} 71. Kf3 {[%clk 0:01:56]} 71... g5 {[%clk
0:01:00]} 72. Rh7 {[%clk 0:01:47]} 72... Rc3+ {[%clk 0:00:56]} 73. Ke4 {[%clk
0:01:27]} 73... Kxg3 {[%clk 0:00:54]} 74. Rxh5 {[%clk 0:01:46]} 74... Kg4 {[%clk
0:00:57]} 75. Rh6 {[%clk 0:01:18]} 75... Rc4+ {[%clk 0:01:19]} 76. Kd5 {[%clk
0:01:42]} 76... Rc8 {[%clk 0:01:00]} 77. Rf6 {[%clk 0:01:42]} 77... Re8 {[%clk
0:00:42]} 78. Rf7 {[%clk 0:01:29]} 78... b5 {[%clk 0:00:54]} 79. Kd6 {[%clk
0:00:32]} 79... b4 {[%clk 0:00:39]} 80. f6 {[%clk 0:00:32]} 80... Kf5 {[%clk
0:01:08]} 81. Kd7 {[%clk 0:00:33]} 81... Re6 {[%clk 0:01:24]} 0-1

[Variant "Standard"]
[Site "Europe Echecs"]

[Event "Sunway Sitges Chess Festival"]
[Date "2024.12.21"]
[White "Braun, Michael"]
[Black "Anand, Batsukh"]
[WhiteElo "2098"]
[BlackElo "2290"]
[Round "6.37"]
[Result "1/2-1/2"]
[TimeControl "40/5400+30:1800+30"]

1. d4 {[%clk 1:30:58]} 1... Nf6 {[%clk 1:30:53]} 2. c4 {[%clk 1:31:19]} 2... g6
{[%clk 1:30:38]} 3. g3 {[%clk 1:31:36]} 3... Bg7 {[%clk 1:31:40]} 4. Bg2 {[%clk
1:32:01]} 4... d6 {[%clk 1:32:03]} 5. Nc3 {[%clk 1:32:25]} 5... O-O {[%clk
1:32:27]} 6. Nf3 {[%clk 1:32:49]} 6... c6 {[%clk 1:32:54]} 7. O-O {[%clk
1:33:05]} 7... Bf5 {[%clk 1:33:20]} 8. Re1 {[%clk 1:33:20]} 8... Ne4 {[%clk
1:32:39]} 9. Qb3 {[%clk 1:29:25]} 9... Qc7 {[%clk 1:31:10]} 10. Be3 {[%clk
1:21:28]} 10... Nxc3 {[%clk 1:29:03]} 11. Qxc3 {[%clk 1:28:39]} 11... Be4 {[%clk
1:28:47]} 12. Rac1 {[%clk 1:25:50]} 12... Nd7 {[%clk 1:24:27]} 13. Qd2 {[%clk
1:25:37]} 13... Rfe8 {[%clk 1:10:51]} 14. Bh6 {[%clk 1:19:18]} 14... Bxf3 {[%clk
1:07:13]} 15. Bxf3 {[%clk 1:19:27]} 15... e5 {[%clk 1:05:48]} 16. Bxg7 {[%clk
1:18:14]} 16... Kxg7 {[%clk 1:05:11]} 17. dxe5 {[%clk 1:18:00]} 17... dxe5
{[%clk 0:58:11]} 18. Red1 {[%clk 1:09:36]} 18... Nf6 {[%clk 0:52:40]} 19. Qc3
{[%clk 0:58:12]} 19... h5 {[%clk 0:48:50]} 20. h4 {[%clk 0:55:35]} 20... e4
{[%clk 0:47:59]} 21. Bg2 {[%clk 0:59:21]} 21... Re5 {[%clk 0:41:41]} 22. c5
{[%clk 0:55:54]} 22... Qe7 {[%clk 0:38:28]} 23. Rd6 {[%clk 0:47:53]} 23... Kh7
{[%clk 0:49:49]} 24. Rcd1 {[%clk 0:41:39]} 24... Rg8 {[%clk 0:42:54]} 25. f4
{[%clk 0:32:02]} 25... exf3 {[%clk 0:45:59]} 26. exf3 {[%clk 0:30:46]} 26... Nd5
{[%clk 0:33:48]} 27. Qd2 {[%clk 0:26:28]} 27... Re2 {[%clk 0:29:38]} 28. Qd3
{[%clk 0:25:43]} 28... Re8 {[%clk 0:23:15]} 29. Rd2 {[%clk 0:22:02]} 29... Re1+
{[%clk 0:20:50]} 30. Kh2 {[%clk 0:19:55]} 30... Rc1 {[%clk 0:18:18]} 31. Qd4
{[%clk 0:14:59]} 31... Qe1 {[%clk 0:15:40]} 32. Rd7 {[%clk 0:12:00]} 32... Re7
{[%clk 0:22:30]} 33. Rd8 {[%clk 0:14:49]} 33... f6 {[%clk 0:18:15]} 34. b4
{[%clk 0:08:17]} 34... Kg7 {[%clk 0:15:48]} 35. a3 {[%clk 0:05:14]} 35... Rc4
{[%clk 0:09:44]} 36. Qf2 {[%clk 0:02:14]} 36... Qxf2 {[%clk 0:10:45]} 37. Rxf2
{[%clk 0:01:23]} 37... Rc3 {[%clk 0:10:22]} 38. f4 {[%clk 0:04:34]} 38... Ne3
{[%clk 0:08:04]} 39. Rfd2 {[%clk 0:30:56]} 39... Ng4+ {[%clk 0:04:20]} 40. Kh3
{[%clk 0:24:13]} 40... Rxa3 {[%clk 0:32:41]} 41. R2d7 {[%clk 0:08:33]} 41... Re3
{[%clk 0:18:19]} 42. b5 {[%clk 0:03:25]} 42... Kf7 {[%clk 0:13:23]} 43. bxc6
{[%clk 0:25:19]} 43... bxc6 {[%clk 0:13:02]} 44. Bxc6 {[%clk 0:25:17]} 44...
Rxd7 {[%clk 0:12:23]} 45. Rxd7+ {[%clk 0:25:14]} 45... Re7 {[%clk 0:07:46]} 46.
Bd5+ {[%clk 0:23:37]} 46... Ke8 {[%clk 0:02:05]} 47. c6 {[%clk 0:15:35]} 47...
Rxd7 {[%clk 0:13:18]} 48. cxd7+ {[%clk 0:16:02]} 48... Kxd7 {[%clk 0:13:44]} 49.
Bf7 {[%clk 0:16:20]} 49... a5 {[%clk 0:12:55]} 50. Bxg6 {[%clk 0:15:33]} 50...
a4 {[%clk 0:07:46]} 51. Bxh5 {[%clk 0:09:35]} 51... Nf2+ {[%clk 0:06:48]} 52.
Kg2 {[%clk 0:11:18]} 52... Ke7 {[%clk 0:02:00]} 53. Be2 {[%clk 0:06:03]} 53...
a3 54. Bc4 {[%clk 0:09:40]} 54... Ng4 55. Ba2 {[%clk 0:06:19]} 55... f5 {[%clk
0:04:16]} 56. Kf3 {[%clk 0:09:19]} 56... Kd6 {[%clk 0:01:46]} 57. Ke2 {[%clk
0:07:58]} 57... Nf6 {[%clk 0:-4:-11]} 58. Kd3 {[%clk 0:07:30]} 58... Nh5 {[%clk
0:-4:-34]} 59. Kc3 {[%clk 0:03:29]} 59... Nxg3 {[%clk 0:02:39]} 60. Bf7 {[%clk
0:03:16]} 60... Ne2+ {[%clk 0:02:18]} 61. Kb3 {[%clk 0:03:34]} 61... Nxf4 {[%clk
0:02:32]} 62. Kxa3 {[%clk 0:01:11]} 62... Ke5 {[%clk 0:02:08]} 63. Kb2 {[%clk
0:03:14]} 63... Kd4 {[%clk 0:01:15]} 64. h5 {[%clk 0:02:52]} 64... Nd3+ {[%clk
0:00:03]} 65. Kc2 {[%clk 0:02:47]} 65... Ne5 {[%clk 0:01:16]} 66. Be8 {[%clk
0:01:19]} 66... Nf3 {[%clk 0:00:39]} 67. h6 {[%clk 0:02:46]} 67... Ng5 {[%clk
0:00:00]} 68. Bg6 {[%clk 0:02:40]} 68... f4 {[%clk 0:01:24]} 69. h7 {[%clk
0:02:56]} 69... Nxh7 {[%clk 0:01:51]} 70. Bxh7 {[%clk 0:02:46]} 70... f3 71. Bd3
{[%clk 0:03:32]} 71... Ke3 72. Bb5 {[%clk 0:03:45]} 72... Kf2 {[%clk 0:03:10]}
73. Bc6 {[%clk 0:04:06]} 73... Kg3 {[%clk 0:03:33]} 74. Bxf3 {[%clk 0:03:43]}
1/2-1/2

[Variant "Standard"]
[Site "Europe Echecs"]